bitfinex-derivatives/quotes_SOLF0:USTF0_20220102
["timestamp","ask_amount","ask_price","bid_price","bid_amount"]
[1641114826602,2.78368017,174.94,174.89,11.6288592]
[1641114826903,14.67647733,174.96,174.89,11.6288592]
[1641114827102,2.49542244,174.96,174.9,1.27226107]
[1641114827304,2.49542244,174.96,174.9,1.77683863]
[1641114827504,2.49542244,174.96,174.9,1.27226107]
[1641114827703,2.49542244,174.96,174.9,29.44162863]
[1641114827902,2.49542244,174.96,174.91,1.27226107]
[1641114829304,14.67647733,174.99,174.93,0.50457756]
[1641114829503,25.18105489,175.0,174.94,0.50457756]
[1641114829704,25.18105489,175.0,174.95,27.66479]
[1641114830607,4.04842601,174.97,174.95,27.66479]
[1641114831308,4.04842601,174.98,174.95,27.66479]
[1641114832308,4.04842601,174.97,174.95,27.66479]
[1641114837813,4.04842601,174.97,174.95,55.32958]
[1641114838011,4.04842601,174.97,174.96,1.27603257]
[1641114838212,4.04842601,174.97,174.96,6.02003257]
[1641114838612,2.77611687,174.99,174.96,6.02003257]
[1641114838815,27.66479,175.08,174.98,0.50457756]
[1641114839013,27.66479,175.08,174.98,4.50457756]
[1641114839212,27.66479,175.08,174.98,4.0]
[1641114839213,2.49542244,175.07,174.98,4.0]
[1641114839612,2.49542244,175.07,174.98,4.50457756]
[1641114839814,2.49542244,175.07,175.01,27.66479]
[1641114840015,12.61124727,175.07,175.01,33.30079]
[1641114840514,24.27603727,175.08,175.01,33.30079]
[1641114841520,24.27603727,175.08,175.01,26.81148396]
[1641114841918,24.27603727,175.08,175.01,32.51859502]
[1641114843219,21.78061483,175.08,175.01,32.51859502]
[1641114843417,2.49542244,175.06,175.01,32.51859502]
[1641114843819,2.49542244,175.07,175.01,32.51859502]
[1641114844017,21.78061483,175.08,175.01,32.51859502]
[1641114844218,2.49542244,175.06,175.01,32.51859502]
[1641114845819,21.78061483,175.08,175.01,26.81148396]
[1641114846020,2.49542244,175.02,174.98,33.37271545]
[1641114846423,21.78061483,175.08,174.98,33.37271545]
[1641114846624,2.49542244,175.03,174.98,33.37271545]
[1641114846822,2.49542244,175.04,174.98,33.37271545]
[1641114847223,21.78061483,175.08,174.98,33.37271545]
[1641114848424,32.39654909,175.07,174.98,33.37271545]
[1641114848625,2.49542244,175.03,174.98,33.37271545]
[1641114849623,32.39654909,175.07,174.98,33.37271545]
[1641114850324,21.78061483,175.08,174.98,33.37271545]
[1641114850724,2.49542244,175.03,174.98,33.37271545]
[1641114851527,21.78061483,175.08,174.98,33.37271545]
[1641114851729,2.49542244,175.03,174.98,33.37271545]
[1641114853029,5.686,175.07,174.98,33.37271545]
[1641114853930,2.49542244,175.03,174.98,33.37271545]
[1641114854130,5.686,175.07,174.98,33.37271545]
[1641114854431,2.49542244,175.04,174.98,33.37271545]
[1641114854630,2.49542244,175.02,174.98,33.37271545]
[1641114854830,4.502,175.02,174.98,33.37271545]
[1641114855634,2.49542244,175.0,174.98,33.37271545]
[1641114856532,2.49542244,175.02,174.98,33.37271545]
[1641114856934,32.39654909,175.06,174.98,33.37271545]
[1641114857133,2.49542244,175.03,174.98,33.37271545]
[1641114858134,2.49542244,175.01,174.98,27.66479]
[1641114859935,12.1703109,175.02,174.98,27.66479]
[1641114860137,12.1703109,175.03,174.98,27.66479]
[1641114861036,2.49542244,175.0,174.98,27.66479]
[1641114861237,12.1703109,175.03,174.98,27.66479]
[1641114861438,2.49542244,175.0,174.98,27.66479]
[1641114861837,2.49542244,175.0,174.96,38.6264]
[1641114862138,12.1703109,175.02,174.96,38.6264]
[1641114862538,14.66573334,175.02,174.96,38.6264]
[1641114863037,12.1703109,175.02,174.96,38.6264]
[1641114863238,14.66573334,175.03,174.96,38.6264]
[1641114864139,12.1703109,175.03,174.96,38.6264]
[1641114864339,2.49542244,175.02,174.99,27.66479]
[1641114865140,12.1703109,175.03,174.99,27.66479]
[1641114865440,14.66573334,175.03,174.99,27.66479]
[1641114865739,2.49542244,175.01,174.99,27.66479]
[1641114867844,12.1703109,175.02,174.99,27.66479]
[1641114868144,5.49542244,175.0,174.94,12.1703109]
[1641114868343,2.49542244,174.95,174.94,12.1703109]
[1641114868543,7.41842244,174.95,174.94,12.1703109]
[1641114869343,7.41842244,174.95,174.88,18.28217496]
[1641114869544,4.923,174.95,174.88,18.28217496]
[1641114870043,2.49542244,174.9,174.88,18.28217496]
[1641114870245,2.49542244,174.9,174.87,27.66479]
[1641114870443,4.923,174.95,174.85,5.71216405]
[1641114870444,2.49542244,174.89,174.85,5.71216405]
[1641114873648,27.66479,174.92,174.85,5.71216405]
[1641114874047,2.49542244,174.89,174.85,5.71216405]
[1641114874948,27.66479,174.92,174.85,5.71216405]
[1641114875548,2.49542244,174.89,174.85,5.71216405]
[1641114875751,2.49542244,174.91,174.85,5.71216405]
[1641114875948,27.66479,174.92,174.85,5.71216405]
[1641114876148,2.49542244,174.89,174.85,5.71216405]
[1641114876850,27.66479,174.92,174.85,5.71216405]
[1641114877250,2.49542244,174.89,174.85,5.71216405]
[1641114878450,27.66479,174.92,174.85,5.71216405]
[1641114878650,2.49542244,174.89,174.85,5.71216405]
[1641114879051,27.66479,174.92,174.85,5.71216405]
[1641114879254,27.66479,174.96,174.86,5.71183778]
[1641114879452,2.49542244,174.92,174.86,9.88783778]
[1641114879653,2.49542244,174.94,174.89,5.71102227]
[1641114879852,27.66479,174.96,174.89,5.71102227]
[1641114880153,2.49542244,174.93,174.89,17.88133317]
[1641114880353,2.49542244,174.93,174.89,45.54612317]
[1641114881053,2.49542244,174.93,174.9,1.27739525]
[1641114881758,27.66479,174.96,174.9,1.27739525]
[1641114881957,2.49542244,174.92,174.9,1.27739525]
[1641114883460,2.49542244,174.92,174.89,12.1703109]
[1641114884158,27.66479,174.96,174.89,12.1703109]
[1641114884357,2.49542244,174.93,174.89,12.1703109]
[1641114884557,2.7807829,174.95,174.89,12.1703109]
[1641114884761,2.7807829,174.95,174.9,12.1703109]
[1641114885057,2.7807829,174.95,174.9,18.3663109]
[1641114885958,2.7807829,174.95,174.91,1.27739525]
[1641114887359,2.7807829,174.95,174.9,12.1703109]
[1641114887761,2.49542244,174.93,174.9,12.1703109]
[1641114888563,2.49542244,174.93,174.89,19.55959978]
[1641114889263,27.66479,174.96,174.89,19.55959978]
[1641114889563,2.49542244,174.92,174.89,19.55959978]
[1641114889763,27.66479,174.96,174.89,19.55959978]
[1641114889965,2.49542244,174.94,174.89,19.55959978]
[1641114890164,2.49542244,174.94,174.89,24.06417734]
[1641114890367,2.77806179,174.95,174.89,23.55959978]
[1641114890865,2.77806179,174.95,174.9,13.44770615]
[1641114890866,2.49542244,174.95,174.9,13.44770615]
[1641114891067,2.77806179,174.98,174.9,18.94170615]
[1641114891268,2.49542244,174.95,174.9,18.94170615]
[1641114891670,2.49542244,174.95,174.91,1.27739525]
[1641114892968,2.49542244,174.95,174.91,28.94218525]
[1641114893371,2.49542244,174.95,174.91,1.27739525]
[1641114893571,2.49542244,174.95,174.92,1.27739525]
[1641114893971,2.49542244,174.95,174.9,1.27739525]
[1641114894673,2.49542244,174.95,174.9,13.44770615]
[1641114894874,2.49542244,174.95,174.92,27.66479]
[1641114895375,2.49542244,174.95,174.93,1.27739525]
[1641114896474,49.2109109,174.99,174.93,1.27739525]
[1641114897474,2.7774829,174.98,174.92,1.27739525]
[1641114897975,2.49542244,174.95,174.92,1.27739525]
[1641114898776,6.549173,174.95,174.94,4.05375056]
[1641114899479,4.05375056,174.95,174.94,4.05375056]
[1641114899984,6.549173,174.96,174.92,19.55931535]
[1641114900178,4.05375056,174.96,174.92,19.55931535]
[1641114900879,6.549173,174.96,174.92,19.55931535]
[1641114901282,4.05375056,174.96,174.92,19.55931535]
[1641114901780,6.549173,174.96,174.92,19.55931535]
[1641114902381,4.05375056,174.96,174.92,19.55931535]
[1641114902680,2.78011615,174.98,174.92,19.55931535]
[1641114902880,37.0406,174.99,174.92,19.55931535]
[1641114903380,37.0406,174.99,174.92,13.44770615]
[1641114903581,2.78015535,174.98,174.95,4.05761069]
[1641114903781,2.49542244,174.96,174.95,4.05761069]
[1641114904382,2.49542244,174.96,174.92,13.44770615]
[1641114904581,2.49542244,174.96,174.92,19.55929041]
[1641114905882,40.9259,175.0,174.92,19.55929041]
[1641114906784,2.77392332,174.99,174.92,1.27739525]
[1641114907582,40.9259,175.0,174.92,1.27739525]
[1641114907783,53.07143322,175.0,174.92,1.27739525]
[1641114908282,2.49542244,174.93,174.92,1.27739525]
[1641114908682,2.49542244,174.93,174.91,5.71037003]
[1641114909181,32.26079,174.96,174.91,5.71037003]
[1641114909382,2.49542244,174.93,174.92,1.27457017]
[1641114909585,1.84850156,174.93,174.92,1.27457017]
[1641114910185,1.84850156,174.93,174.89,4.0]
[1641114910789,1.84850156,174.93,174.9,1.27453203]
[1641114913994,27.66479,174.96,174.9,1.27453203]
[1641114914395,1.84850156,174.93,174.9,1.27453203]
[1641114914594,1.84850156,174.95,174.9,1.27453203]
[1641114915696,27.66479,174.96,174.9,1.27453203]
[1641114918799,31.71361047,174.96,174.9,1.27453203]
[1641114919599,27.66479,174.96,174.95,4.05784365]
[1641114919803,27.66479,174.96,174.95,10.71284365]
[1641114920601,30.44521288,174.96,174.95,11.98737568]
[1641114921802,32.29371444,174.96,174.95,11.98737568]
[1641114922702,32.29371444,174.96,174.95,10.71284365]
[1641114922905,32.29371444,174.96,174.95,6.655]
[1641114924006,4.62892444,174.96,174.95,6.655]
[1641114925205,4.62892444,174.96,174.94,4.05784365]
[1641114926207,2.78042288,174.95,174.94,4.05784365]
[1641114926607,4.62892444,174.95,174.94,4.05784365]
[1641114927606,1.84850156,174.95,174.94,4.05784365]
[1641114928205,1.84850156,174.95,174.92,4.05784365]
[1641114928607,1.84850156,174.93,174.92,4.05784365]
[1641114929910,1.84850156,174.93,174.89,1.27730368]
[1641114930110,1.84850156,174.93,174.89,19.55878831]
[1641114931214,68.24499,174.96,174.89,19.55878831]
[1641114931614,68.24499,174.96,174.89,24.94278831]
[1641114931914,1.84850156,174.92,174.89,24.94278831]
[1641114932114,1.84850156,174.92,174.9,1.27730368]
[1641114932613,2.78055059,174.95,174.9,1.27730368]
[1641114932816,1.84850156,174.92,174.9,1.27730368]
[1641114934216,68.24499,174.96,174.9,1.27730368]
[1641114934420,1.84850156,174.92,174.9,1.27730368]
[1641114936221,1.84850156,174.92,174.89,19.55878831]
[1641114937319,1.84850156,174.92,174.89,13.44761458]
[1641114937522,5.90631876,174.92,174.89,1.27730368]
[1641114938724,1.84850156,174.92,174.89,19.55931211]
[1641114950237,1.84850156,174.92,174.89,1.27730368]
[1641114952840,1.84850156,174.92,174.9,12.1703109]
[1641114953246,4.0578172,174.95,174.9,12.1703109]
[1641114953945,4.0578172,174.95,174.94,4.05435405]
[1641114954346,5.90631876,174.95,174.94,4.05435405]
[1641114954546,5.90631876,174.95,174.91,12.1703109]
[1641114954746,1.84850156,174.92,174.91,12.1703109]
[1641114955247,1.84850156,174.92,174.89,19.55382507]
[1641114955449,1.84850156,174.9,174.89,19.55382507]
[1641114956548,5.90631876,174.9,174.86,12.1703109]
[1641114957349,4.0578172,174.9,174.86,12.1703109]
[1641114957850,1.84850156,174.89,174.86,12.1703109]
[1641114958051,1.84850156,174.89,174.85,19.55382507]
[1641114958254,4.0578172,174.89,174.85,19.55382507]
[1641114958455,1.84850156,174.88,174.85,19.55382507]
[1641114958852,4.0578172,174.89,174.86,12.1703109]
[1641114959257,1.84850156,174.88,174.86,12.1703109]
[1641114959653,4.0578172,174.89,174.86,12.1703109]
[1641114959853,4.0578172,174.89,174.85,19.55382507]
[1641114960555,1.84850156,174.88,174.85,19.55382507]
[1641114961255,1.84850156,174.88,174.86,12.1703109]
[1641114962157,4.0578172,174.89,174.86,12.1703109]
[1641114962757,4.0578172,174.88,174.86,12.1703109]
[1641114962958,4.0578172,174.88,174.85,1.27730368]
[1641114963365,1.84850156,174.86,174.85,1.27730368]
[1641114965764,1.84850156,174.86,174.83,11.0378167]
[1641114966564,37.0513,174.91,174.83,11.0378167]
[1641114966765,1.84850156,174.86,174.83,11.0378167]
[1641114967367,1.84850156,174.85,174.83,11.0378167]
[1641114967966,1.84850156,174.85,174.84,1.26826098]
[1641114968567,1.84850156,174.86,174.84,1.26826098]
[1641114968968,1.84850156,174.88,174.84,1.26826098]
[1641114969167,37.0513,174.91,174.84,1.26826098]
[1641114969668,1.84850156,174.9,174.84,1.26826098]
[1641114969967,37.0513,174.91,174.84,1.26826098]
[1641114970170,30.55684096,174.91,174.84,1.26826098]
[1641114970369,1.84850156,174.9,174.84,1.26826098]
[1641114970772,30.55684096,174.91,174.84,1.26826098]
[1641114973373,1.84850156,174.86,174.84,1.26826098]
[1641114974575,30.55684096,174.91,174.84,1.26826098]
[1641114975375,1.84850156,174.87,174.84,1.26826098]
[1641114975575,30.55684096,174.91,174.84,1.26826098]
[1641114976777,1.84850156,174.88,174.84,1.26826098]
[1641114977179,30.55684096,174.91,174.84,1.26826098]
[1641114977979,4.0578172,174.89,174.85,12.1703109]
[1641114978479,1.84850156,174.88,174.85,12.1703109]
[1641114978679,5.90631876,174.89,174.85,12.1703109]
[1641114978879,4.0578172,174.89,174.85,12.1703109]
[1641114979779,4.0578172,174.9,174.85,12.1703109]
[1641114980681,1.84850156,174.89,174.85,12.1703109]
[1641114980883,4.0578172,174.9,174.85,12.1703109]
[1641114981283,4.0578172,174.89,174.85,12.1703109]
[1641114982086,1.84850156,174.88,174.85,12.1703109]
[1641114982785,1.84850156,174.88,174.86,12.1703109]
[1641114983688,4.0578172,174.9,174.86,12.1703109]
[1641114984487,4.0578172,174.91,174.86,12.1703109]
[1641114984988,1.84850156,174.88,174.86,12.1703109]
[1641114985186,1.84850156,174.88,174.87,12.1703109]
[1641114987289,4.0578172,174.91,174.87,12.1703109]
[1641114987589,1.84850156,174.88,174.86,12.1703109]
[1641114988288,1.84850156,174.88,174.87,12.1703109]
[1641114988990,1.84850156,174.88,174.86,12.1703109]
[1641114989894,1.84850156,174.87,174.86,12.1703109]
[1641114990393,1.84850156,174.87,174.85,12.1703109]
[1641114990692,4.0578172,174.89,174.85,12.1703109]
[1641114991095,5.90631876,174.89,174.85,12.1703109]
[1641114991294,4.0578172,174.89,174.85,12.1703109]
[1641114991494,1.84850156,174.88,174.85,12.1703109]
[1641114992096,5.90631876,174.88,174.85,1.26826098]
[1641114992598,1.84850156,174.88,174.85,1.26826098]
[1641114993298,5.90631876,174.88,174.87,4.05715352]
[1641114993900,5.90631876,174.88,174.84,13.43857188]
[1641114994099,1.84850156,174.87,174.84,13.43857188]
[1641114994702,1.84850156,174.85,174.84,1.26826098]
[1641114996503,4.63075956,174.85,174.84,4.05848498]
[1641114997101,5.90695366,174.85,174.84,4.05848498]
[1641114997903,5.90695366,174.85,174.81,19.54748407]
[1641114998502,1.84850156,174.83,174.81,19.54748407]
[1641114998701,1.84850156,174.82,174.81,19.54748407]
[1641114998902,4.0584521,174.85,174.81,19.54748407]
[1641114999102,1.84850156,174.83,174.81,19.54748407]
[1641114999402,4.0584521,174.85,174.81,19.54748407]
[1641114999604,1.84850156,174.83,174.81,19.54748407]
[1641114999804,1.84850156,174.83,174.82,12.1703109]
[1641115000005,31.7232421,174.86,174.82,12.1703109]
[1641115000404,1.84850156,174.83,174.81,19.54748407]
[1641115000606,31.7232421,174.86,174.81,19.54748407]
[1641115000804,1.84850156,174.82,174.81,19.54748407]
[1641115003907,1.84850156,174.82,174.81,7.37717317]
[1641115012622,1.84850156,174.82,174.81,1.26826098]
[1641115015925,1.84850156,174.82,174.81,6.68026098]
[1641115021029,1.84850156,174.82,174.81,24.92053541]
[1641115022831,1.84850156,174.82,174.81,12.77470474]
[1641115026438,1.84850156,174.83,174.81,12.77470474]
[1641115026639,4.0584521,174.87,174.82,5.71314309]
[1641115026838,1.84850156,174.83,174.82,5.71314309]
[1641115027244,1.84850156,174.83,174.82,6.98140407]
[1641115030745,1.37153565,174.83,174.82,6.98140407]
[1641115031346,4.05796319,174.88,174.82,6.98140407]
[1641115031548,1.37153565,174.83,174.82,6.98140407]
[1641115031847,1.37153565,174.83,174.82,1.26826098]
[1641115032752,1.37153565,174.83,174.81,7.36270474]
[1641115033151,4.05796319,174.85,174.81,7.36270474]
[1641115033351,4.05796319,174.86,174.81,7.36270474]
[1641115033752,1.37153565,174.82,174.81,7.36270474]
[1641115036755,27.66479,174.85,174.81,7.36270474]
[1641115036956,1.37153565,174.83,174.81,7.36270474]
[1641115038159,7.05796319,174.88,174.81,7.36270474]
[1641115038561,4.05796319,174.87,174.81,7.36270474]
[1641115039058,1.37153565,174.82,174.81,7.36270474]
[1641115040064,4.05796319,174.87,174.81,7.36270474]
[1641115041463,1.37153565,174.82,174.81,7.36270474]
[1641115043064,1.37153565,174.82,174.81,19.53948949]
[1641115044163,1.37153565,174.82,174.81,7.36270474]
[1641115044963,1.37153565,174.82,174.81,19.53969565]
[1641115048672,1.37153565,174.82,174.81,1.26826098]
[1641115049972,1.37153565,174.82,174.81,7.3779434]
[1641115057482,1.37153565,174.82,174.81,19.5585323]
[1641115058890,4.05796319,174.85,174.81,19.5585323]
[1641115059088,1.37153565,174.83,174.81,19.5585323]
[1641115061387,1.37153565,174.83,174.82,12.1805889]
[1641115062088,1.37153565,174.83,174.81,19.5585323]
[1641115062287,4.05796319,174.85,174.81,19.5585323]
[1641115062488,1.37153565,174.82,174.81,19.5585323]
[1641115065193,4.05796319,174.85,174.81,7.3779434]
[1641115065395,1.37153565,174.83,174.81,7.3779434]
[1641115067097,1.37153565,174.83,174.82,12.17997649]
[1641115070302,1.37153565,174.83,174.81,7.3779434]
[1641115073304,1.37153565,174.83,174.82,12.17977926]
[1641115073605,1.37153565,174.83,174.82,17.89308555]
[1641115073803,1.37153565,174.83,174.82,5.71330629]
[1641115074705,1.37153565,174.83,174.82,6.98156727]
[1641115075009,4.05796319,174.87,174.82,6.98156727]
[1641115075807,1.37153565,174.85,174.83,13.44731112]
[1641115078611,1.37153565,174.85,174.83,1.26826098]
[1641115078810,37.16056319,174.89,174.83,1.26826098]
[1641115079011,6.719,174.86,174.83,1.26826098]
[1641115080113,1.37153565,174.85,174.83,1.26826098]
[1641115080513,1.37153565,174.85,174.84,12.17905014]
[1641115081917,1.37153565,174.85,174.83,1.26826098]
[1641115087224,1.37153565,174.85,174.83,7.3779434]
[1641115087627,1.37153565,174.85,174.83,19.52776284]
[1641115089728,1.37153565,174.85,174.83,13.41808042]
[1641115090731,1.01750057,174.85,174.83,19.52776284]
[1641115091030,1.01750057,174.85,174.83,7.3779434]
[1641115091230,1.01750057,174.85,174.82,6.98156727]
[1641115091733,1.01750057,174.85,174.83,1.26826098]
[1641115092731,1.01750057,174.86,174.83,7.25076041]
[1641115093232,1.01750057,174.87,174.85,5.71200091]
[1641115093434,1.01750057,174.87,174.85,10.44600091]
[1641115094132,1.01750057,174.87,174.86,1.26826098]
[1641115094633,1.01750057,174.87,174.86,13.44534636]
[1641115095634,1.01750057,174.87,174.86,1.26826098]
[1641115096534,1.01750057,174.87,174.86,13.44515004]
[1641115101037,1.01750057,174.87,174.86,1.26826098]
[1641115102436,1.01750057,174.9,174.86,7.25076041]
[1641115102638,4.05937694,174.91,174.87,1.98249943]
[1641115102838,4.05937694,174.91,174.89,5.71069613]
[1641115103041,4.05937694,174.91,174.89,12.07469613]
[1641115103437,1.01750057,174.92,174.89,12.07469613]
[1641115104339,1.01750057,174.92,174.9,1.26826098]
[1641115104841,1.01750057,174.91,174.9,1.26826098]
[1641115105339,4.05937694,174.96,174.9,1.26826098]
[1641115105838,1.01750057,174.91,174.9,1.26826098]
[1641115106341,4.05937694,174.95,174.9,1.26826098]
[1641115106538,4.05937694,174.95,174.9,5.56726098]
[1641115106739,1.01750057,174.93,174.9,5.56726098]
[1641115106939,62.61709,174.98,174.9,11.54976041]
[1641115107142,1.01750057,174.94,174.9,5.56726098]
[1641115107341,1.01750057,174.94,174.91,27.66479]
[1641115107738,1.01750057,174.94,174.93,5.70971794]
[1641115108338,34.9523,174.98,174.93,5.70971794]
[1641115108538,1.01750057,174.96,174.93,5.70971794]
[1641115108740,1.01750057,174.96,174.94,1.26826098]
[1641115109247,1.01750057,174.96,174.94,28.93305098]
[1641115109844,4.05937694,174.99,174.94,28.93305098]
[1641115110045,1.01750057,174.95,174.94,28.93305098]
[1641115110247,1.01750057,174.95,174.94,27.66479]
[1641115110446,7.86150057,174.95,174.94,27.66479]
[1641115111550,6.844,174.95,174.94,27.66479]
[1641115111752,13.19139014,175.0,174.94,39.35635543]
[1641115111950,12.17388957,175.0,174.97,5.98249943]
[1641115112150,29.58793923,175.04,174.97,4.0]
[1641115112349,29.58793923,175.04,174.98,3.0]
[1641115112549,33.5509,175.07,174.98,4.911]
[1641115112750,33.5509,175.07,174.99,34.9306]
[1641115113450,33.5509,175.07,175.01,27.66479]
[1641115113652,3.0,175.09,175.01,27.66479]
[1641115114155,2.77712087,175.06,175.01,27.66479]
[1641115115153,2.77712087,175.08,175.01,27.66479]
[1641115115953,5.77712087,175.09,175.01,27.66479]
[1641115116153,2.77712087,175.09,175.01,27.66479]
[1641115116354,2.77712087,175.08,175.01,27.66479]
[1641115117555,2.77712087,175.08,175.01,31.66479]
[1641115118156,2.77712087,175.08,175.01,27.66479]
[1641115118354,2.77712087,175.08,174.99,34.9306]
[1641115118756,2.77712087,175.08,174.95,4.0]
[1641115118955,32.8762,175.07,174.98,4.0]
[1641115119155,32.8762,175.07,174.96,34.0347]
[1641115119358,39.4872,175.07,175.0,27.66479]
[1641115119556,39.4872,175.07,174.96,34.0347]
[1641115119758,2.77712087,175.06,174.96,34.0347]
[1641115120660,2.77712087,175.06,174.97,6.1127704]
[1641115120859,3.0,175.01,174.97,6.1127704]
[1641115121060,4.377,175.01,174.97,6.1127704]
[1641115121260,7.377,175.01,174.97,6.1127704]
[1641115121460,27.66479,174.99,174.97,6.1127704]
[1641115121659,27.66479,174.99,174.91,5.71037003]
[1641115121660,27.66479,174.99,174.95,6.1127704]
[1641115122261,27.66479,174.99,174.92,6.1127704]
[1641115124063,30.66479,174.99,174.92,6.1127704]
[1641115124365,2.77889774,174.98,174.92,6.1127704]
[1641115125865,2.77889774,174.98,174.92,7.39095343]
[1641115128567,30.66479,174.99,174.92,1.27818303]
[1641115129066,27.66479,174.99,174.92,1.27818303]
[1641115129467,30.66479,174.99,174.92,1.27818303]
[1641115129668,27.66479,174.99,174.92,1.27818303]
[1641115130569,27.66479,174.99,174.92,7.37087246]
[1641115130771,27.66479,174.99,174.94,5.70922897]
[1641115131370,27.66479,174.99,174.95,1.27818303]
[1641115142481,27.66479,175.02,174.95,1.27818303]
[1641115142884,27.66479,175.02,174.95,13.44863112]
[1641115143283,2.77855558,175.01,174.95,44.46523112]
[1641115144583,2.77855558,175.01,174.96,19.54132055]
[1641115145884,2.77855558,175.03,174.96,19.54132055]
[1641115146786,2.77855558,175.03,174.97,12.17044809]
[1641115147188,2.77855558,175.03,174.96,19.54132055]
[1641115148187,2.77855558,175.04,174.98,12.17044809]
[1641115149290,2.77855558,175.04,174.99,5.70759967]
[1641115149889,2.77855558,175.04,175.0,1.27818303]
[1641115152194,3.0,175.06,175.01,12.17044809]
[1641115152995,3.0,175.06,175.01,1.27832043]
[1641115152996,2.77755773,175.05,175.01,1.27832043]
[1641115153393,5.77755773,175.05,175.01,1.27832043]
[1641115153593,3.0,175.05,175.01,1.27832043]
[1641115154496,3.0,175.06,175.0,45.51524809]
[1641115154698,2.21783681,175.05,175.0,46.29741128]
[1641115154897,2.21783681,175.05,175.0,12.95261128]
[1641115155098,2.77748553,175.05,175.01,1.27832699]
[1641115155699,14.94588407,175.05,175.02,0.78216319]
[1641115155901,14.94588407,175.05,175.01,1.27832699]
[1641115156099,14.94588407,175.05,175.02,0.78216319]
[1641115157100,14.94588407,175.05,174.99,33.37238967]
[1641115157101,2.77748553,175.05,174.99,33.37238967]
[1641115157802,14.94588407,175.06,175.04,0.78216319]
[1641115158407,14.94588407,175.07,175.04,0.78216319]
[1641115159202,14.94588407,175.08,175.04,0.78216319]
[1641115159905,14.94588407,175.08,175.02,4.699]
[1641115160305,14.94588407,175.08,175.06,0.78216319]
[1641115160507,2.77748553,175.08,175.06,0.78216319]
[1641115161106,2.77748553,175.08,175.06,7.62216319]
[1641115161305,2.77748553,175.08,175.07,0.78216319]
[1641115162007,2.77748553,175.09,175.06,6.84]
[1641115162208,2.77748553,175.09,175.03,5.70645971]
[1641115162407,2.77748553,175.09,175.07,0.78216319]
[1641115163409,2.77748553,175.09,175.04,13.44886878]
[1641115164711,27.66479,175.1,175.04,13.44886878]
[1641115165211,12.16839854,175.12,175.04,13.44886878]
[1641115165412,2.77748553,175.09,175.04,13.44886878]
[1641115165714,2.77748553,175.09,175.06,0.78216319]
[1641115166113,2.77748553,175.09,175.04,14.23103197]
[1641115166318,4.699,175.11,175.05,0.78216319]
[1641115166514,4.699,175.11,175.05,28.44695319]
[1641115166814,2.77748553,175.1,175.06,1.27842069]
[1641115167214,2.21783681,175.09,175.06,1.27842069]
[1641115167616,2.21783681,175.09,175.04,1.27842069]
[1641115168224,2.77748553,175.1,175.05,0.78216319]
[1641115168620,30.44227553,175.08,175.03,7.76688078]
[1641115168818,2.77748553,175.08,175.03,1.27842069]
[1641115169018,2.77748553,175.08,175.07,0.78216319]
[1641115169418,2.77748553,175.1,175.07,0.78216319]
[1641115169620,2.77748553,175.1,175.04,12.17044809]
[1641115169820,2.77748553,175.1,175.08,0.78216319]
[1641115170020,2.77748553,175.11,175.04,12.17044809]
[1641115170224,2.77748553,175.11,175.09,0.78216319]
[1641115170721,2.77748553,175.11,175.04,12.17044809]
[1641115170920,14.94588407,175.11,175.03,12.17044809]
[1641115171320,14.94588407,175.11,175.06,0.78216319]
[1641115171919,12.16839854,175.1,175.06,0.78216319]
[1641115172621,12.16839854,175.1,175.09,0.78216319]
[1641115173022,12.16839854,175.1,175.06,4.05513885]
[1641115173224,12.16839854,175.1,175.06,4.83730204]
[1641115173824,12.16839854,175.1,175.09,0.78216319]
[1641115174023,12.16839854,175.1,175.06,4.05513885]
[1641115174327,14.94588407,175.1,175.06,4.05513885]
[1641115174730,14.94588407,175.1,175.08,0.78216319]
[1641115174926,12.16839854,175.1,175.08,0.78216319]
[1641115175325,12.16839854,175.1,175.06,4.05513885]
[1641115175326,12.16839854,175.1,175.06,4.83730204]
[1641115175828,12.16839854,175.1,175.06,4.05513885]
[1641115176333,12.16839854,175.1,175.07,0.78216319]
[1641115177029,12.16839854,175.1,175.06,4.05513885]
[1641115177431,19.02539854,175.1,175.06,4.05513885]
[1641115177630,19.02539854,175.1,175.06,5.33349093]
[1641115178333,2.77748553,175.09,175.06,5.33349093]
[1641115178734,2.77748553,175.09,175.08,0.78216319]
[1641115179133,2.77748553,175.09,175.06,4.05513885]
[1641115180236,2.77748553,175.09,175.07,0.78216319]
[1641115180435,12.16839854,175.1,175.07,0.78216319]
[1641115180837,12.16839854,175.1,175.06,4.05513885]
[1641115181039,12.16839854,175.1,175.08,0.78216319]
[1641115181438,14.94588407,175.11,175.08,0.78216319]
[1641115181936,14.94588407,175.11,175.06,4.05513885]
[1641115182837,14.94588407,175.11,175.09,0.78216319]
[1641115183039,2.77748553,175.11,175.09,0.78216319]
[1641115183239,2.77748553,175.11,175.08,4.05513885]
[1641115184240,14.94588407,175.12,175.08,4.05513885]
[1641115184842,14.94588407,175.12,175.08,4.83730204]
[1641115185241,2.77748553,175.12,175.09,4.05513885]